fUSD/lending_fUSD_20250718
["ID","MTS","AMOUNT","RATE_DAILY","PERIOD"]
[372902050,1752796935117,355.78466375,0.00030136,120]
[372902053,1752797225846,1252.19235809,0.000301,120]
[372902068,1752797422311,1000.0,0.0003013,120]
[372902078,1752797431653,-250.0,0.00015,2]
[372902079,1752797431663,-19.52800002,0.0001575,2]
[372902080,1752797431674,-230.47199998,0.0001575,2]
[372902081,1752797431684,-250.0,0.00016415,2]
[372902082,1752797431694,-181.20469962,0.00016499,2]
[372902083,1752797431706,-802.37449623,0.00016499,2]
[372902084,1752797431717,-216.42080415,0.00016499,2]
[372902085,1752797431727,-300.0,0.00016499,2]
[372902086,1752797431736,-1000.0,0.000165,2]
[372902087,1752797431746,-1000.0,0.000165,2]
[372902088,1752797431756,-250.0,0.000165,2]
[372902089,1752797431766,-1000.0,0.000165,2]
[372902090,1752797431776,-150.0,0.000165,2]
[372902091,1752797431787,-300.0,0.000165,2]
[372902092,1752797431800,-2843.63221085,0.00016575,2]
[372902093,1752797431934,-526.95417224,0.00016575,2]
[372902094,1752797431950,-1721.23685974,0.00016575,2]
[372902135,1752797437668,-510.00112626,0.00016575,2]
[372902136,1752797437922,-13843.55564577,0.00016575,2]
[372902138,1752797437932,-937.0,0.000175,2]
[372902140,1752797437942,-2569.73016664,0.000179,2]
[372902142,1752797437951,-420.0,0.0001803,2]
[372902144,1752797437961,-1000.0,0.00018083,2]
[372902146,1752797437971,-289.24202875,0.00018083,2]
[372902280,1752797439625,-710.75797125,0.00018083,2]
[372902282,1752797439635,-115.17815734,0.00018083,2]
[372902354,1752797440421,-763.940755,0.00018083,2]
[372902666,1752797443573,-120.88108766,0.00018083,2]
[372902668,1752797443583,-1000.0,0.00018083,2]
[372902670,1752797443593,-1000.0,0.00018083,2]
[372902672,1752797443602,-600.0,0.00018083,2]
[372902674,1752797443612,-1000.0,0.00018083,2]
[372902676,1752797443621,-1000.0,0.00018083,2]
[372902678,1752797443632,-208.08503929,0.00018083,2]
[372902680,1752797443641,-1000.0,0.00018083,2]
[372902682,1752797443652,-1000.0,0.00018083,2]
[372902684,1752797443661,-354.66551186,0.00018083,2]
[372902686,1752797443673,-645.33448814,0.00018083,2]
[372902688,1752797443682,-1000.0,0.00018083,2]
[372902690,1752797443692,-1000.0,0.00018083,2]
[372902693,1752797443702,-1000.0,0.00018083,2]
[372902695,1752797443711,-151.0,0.00018083,2]
[372902696,1752797443721,-207.4,0.00018083,2]
[372902698,1752797443731,-1000.0,0.00018083,2]
[372902701,1752797443741,-151.0,0.00018083,2]
[372902703,1752797443751,-1000.0,0.00018083,2]
[372902704,1752797443759,-1000.0,0.00018083,2]
[372902706,1752797443769,-151.0,0.00018083,2]
[372902708,1752797443779,-1000.0,0.00018083,2]
[372902710,1752797443788,-151.0,0.00018083,2]
[372902712,1752797443797,-1000.0,0.00018083,2]
[372902714,1752797443812,-1000.0,0.00018083,2]
[372902716,1752797443821,-1000.0,0.00018083,2]
[372902718,1752797443831,-1672.19531381,0.00018083,2]
[372902720,1752797443840,-150.0,0.00018093,2]
[372902722,1752797443850,-150.0,0.00018093,2]
[372902724,1752797443860,-150.0,0.00018093,2]
[372902726,1752797443871,-150.0,0.00018093,2]
[372902728,1752797443882,-150.0,0.00018093,2]
[372902730,1752797443891,-1100.60973245,0.00018093,2]
[372902732,1752797443903,-2249.39026755,0.00018093,2]
[372902734,1752797443913,-564.22705694,0.00018093,2]
[372902736,1752797443925,-428.95694306,0.00018093,2]
[372902738,1752797443935,-210.3415674,0.00018093,2]
[372902740,1752797443946,-791.67355995,0.00018093,2]
[372902742,1752797443957,-20.98487265,0.00018093,2]
[372902744,1752797443968,-807.0,0.00018093,2]
[372902747,1752797443977,-1267.0,0.00018093,2]
[372902749,1752797443987,-574.738,0.00018093,2]
[372902751,1752797443996,-297.22053199,0.00018093,2]
[372902753,1752797444008,-264.77946801,0.00018093,2]
[372902755,1752797444017,-1686.0,0.00018093,2]
[372902757,1752797444027,-1166.0,0.00018093,2]
[372902759,1752797444036,-6046.0,0.00018093,2]
[372902761,1752797444046,-4123.0,0.00018093,2]
[372902763,1752797444061,-21355.0,0.00018093,2]
[372902765,1752797444071,-862.0,0.00018093,2]
[372902767,1752797444081,-314.22053199,0.0001812,2]
[372902770,1752797444101,-1365.77946801,0.0001812,2]
[372902772,1752797444111,-151.0,0.00018455,2]
[372902774,1752797444120,-151.0,0.00018457,2]
[372902776,1752797444130,-151.0,0.00018461,2]
[372902778,1752797444139,-151.0,0.00018464,2]
[372902780,1752797444149,-600.0,0.00018631,2]
[372902782,1752797444158,-918.0,0.0001878,2]
[372902784,1752797444167,-509.0,0.00018896,2]
[372902786,1752797444176,-500.0,0.00019014,2]
[372902788,1752797444185,-170.85,0.00019178,2]
[372902790,1752797444194,-150.0,0.00019178,2]
[372902792,1752797444203,-600.0,0.00019179,2]
[372902794,1752797444213,-13.12214195,0.00019182,2]
[372902801,1752797444283,-986.87785805,0.00019182,2]
[372902803,1752797444305,-314.30620442,0.00019187,2]
[372902931,1752797445573,-351.69379558,0.00019187,2]
[372902933,1752797445582,-5676.53,0.00019416,2]
[372902935,1752797445592,-215.0738,0.00019452,2]
[372902936,1752797445601,-1500.0,0.00019627,2]
[372902938,1752797445610,-250.0,0.00019645,2]
[372902940,1752797445620,-150.0,0.00019688,2]
[372902942,1752797445630,-587.0,0.00019703,2]
[372902944,1752797445639,-600.0,0.00019727,2]
[372902947,1752797445649,-200.0,0.00019793,2]
[372902948,1752797445658,-210.5,0.000198,2]
[372902950,1752797445668,-2351.0,0.000199,2]
[372902952,1752797445678,-1209.0,0.00019972,2]
[372902954,1752797445687,-1209.0,0.00019972,2]
[372902956,1752797445697,-1209.0,0.00019972,2]
[372902958,1752797445709,-1209.0,0.00019972,2]
[372902960,1752797445725,-1209.0,0.00019972,2]
[372902962,1752797445735,-1209.0,0.00019972,2]
[372902964,1752797445745,-1209.0,0.00019972,2]
[372902966,1752797445755,-1209.0,0.00019972,2]
[372902968,1752797445767,-189.35557149,0.00019972,2]
[372902970,1752797445776,-150.0,0.0002,2]
[372902973,1752797445786,-10.73026928,0.0002005,2]
[372903001,1752797446198,-400.84646606,0.0002005,2]
[372903003,1752797446209,-487.42326466,0.0002005,2]
[372903005,1752797446218,-500.0,0.00020164,2]
[372903007,1752797446227,-1200.0,0.00020164,2]
[372903009,1752797446236,-701.3506026,0.00020164,2]
[372903016,1752797446291,-398.6493974,0.00020164,2]
[372903018,1752797446300,-249.24,0.00020187,2]
[372903020,1752797446313,-150.0,0.00020198,2]
[372903022,1752797446322,-600.0,0.00020275,2]
[372903024,1752797446332,-1525.62,0.00020282,2]
[372903026,1752797446341,-190.0,0.00020368,7]
[372903028,1752797446350,-150.0,0.00020708,2]
[372903030,1752797446360,-223.0315306,0.00020821,2]
[372903032,1752797446369,-600.0,0.00020823,2]
[372903034,1752797446379,-150.0,0.00020934,4]
[372903036,1752797446389,-150.0,0.00020934,4]
[372903038,1752797446398,-150.0,0.00020934,4]
[372903040,1752797446408,-1000.0,0.00020993,2]
[372903042,1752797446418,-509.0,0.00021059,5]
[372903044,1752797446427,-3350.0,0.00021093,2]
[372903046,1752797446436,-952.0,0.00021093,2]
[372903048,1752797446446,-1023.0,0.00021093,2]
[372903050,1752797446455,-807.0,0.00021093,2]
[372903052,1752797446464,-1237.009,0.00021093,2]
[372903054,1752797446476,-562.0,0.00021093,2]
[372903056,1752797446486,-1686.0,0.00021093,2]
[372903058,1752797446496,-1041.97,0.00021093,2]
[372903060,1752797446505,-4123.0,0.00021093,2]
[372903062,1752797446514,-14472.480072,0.00021093,2]
[372903064,1752797446526,-795.9153859,0.00021093,2]
[372903066,1752797446537,-1742.136,0.00021093,2]
[372903068,1752797446548,-3197.10234601,0.00021093,2]
[372903586,1752797488275,240.91,0.00013699,2]
[372903587,1752797489263,1000.0,0.00030135,120]
[372903589,1752797752247,2000.0,0.00030037,120]
[372903591,1752798273086,1396.79871795,0.0003,120]
[372903594,1752798522739,237.53,0.00013699,2]
[372903612,1752798631532,-500.0,0.000149,2]
[372903614,1752798631543,-1018.8,0.00014999,2]
[372903616,1752798631554,-181.2,0.00014999,2]
[372903618,1752798631564,-150.0,0.00014999,2]
[372903620,1752798631573,-300.0,0.00014999,2]
[372903621,1752798631583,-158583.11794523,0.00015,2]
[372903622,1752798631607,-624.39667551,0.00015,2]
[372903623,1752798631801,-285.98369714,0.00015,2]
[372903624,1752798631854,-13467.86904298,0.00015,2]
[372903625,1752798631863,-250.0,0.00015,2]
[372903626,1752798631873,-343.915208,0.0001545,2]
[372903627,1752798631882,-500.0,0.0001545,2]
[372903628,1752798631891,-500.0,0.0001545,2]
[372903629,1752798631901,-199677.20962912,0.0001565,2]
[372903630,1752798631910,-649.91845206,0.0001565,2]
[372903631,1752798631920,-500.0,0.0001565,2]
[372903632,1752798631930,-500.0,0.0001565,2]
[372903633,1752798631940,-500.0,0.0001565,2]
[372903640,1752798632065,-674.36203079,0.000158,2]
[372903642,1752798632075,-493.89,0.0001589,2]
[372903644,1752798632084,-2861.17337193,0.000159,2]
[372903646,1752798632093,-1878.31674894,0.00016024,2]
[372903648,1752798632104,-255.0,0.00016124,2]
[372903650,1752798632114,-1033.73056914,0.00016198,2]
[372903652,1752798632123,-500.0,0.0001625,2]
[372903654,1752798632133,-250.0,0.0001639,2]
[372903656,1752798632143,-420.0,0.00016416,2]
[372903657,1752798632152,-1680.0,0.00016499,2]
[372903658,1752798632161,-674.36203079,0.00016621,2]
[372903659,1752798632171,-158.5570564,0.00016698,2]
[372903660,1752798632180,-1878.31674886,0.0001682,2]
[372903661,1752798632189,-229.91594061,0.00017121,2]
[372903662,1752798632199,-787.3607983,0.00017121,2]
[372903663,1752798632208,-674.36203079,0.00017442,2]
[372903664,1752798632217,-884.0,0.000175,2]
[372903665,1752798632229,-1878.31674886,0.00017616,2]
[372903666,1752798632242,-587.0,0.00017966,2]
[372903667,1752798632254,-308.0,0.00018137,2]
[372903668,1752798632268,-2351.0,0.00018149,2]
[372903669,1752798632282,-674.36203079,0.00018262,2]
[372903670,1752798632300,-150.0,0.00018315,2]
[372903671,1752798632314,-576.52923526,0.00018325,2]
[372903672,1752798632327,-250.0,0.00018351,2]
[372903673,1752798632339,-1878.31674886,0.00018412,2]
[372903674,1752798632351,-1000.0,0.00018426,2]
[372903675,1752798632364,-1000.0,0.00018426,2]
[372903676,1752798632373,-1000.0,0.00018426,2]
[372903677,1752798632382,-1000.0,0.00018426,2]
[372903678,1752798632391,-151.0,0.00018426,2]
[372903679,1752798632401,-1000.0,0.00018426,2]
[372903680,1752798632410,-1000.0,0.00018426,2]
[372903681,1752798632419,-1000.0,0.00018426,2]
[372903682,1752798632428,-1000.0,0.00018426,2]
[372903683,1752798632437,-600.0,0.00018426,2]
[372903684,1752798632445,-1000.0,0.00018426,2]
[372903685,1752798632454,-1000.0,0.00018426,2]
[372903686,1752798632463,-225.4601811,0.00018426,2]
[372903687,1752798632472,-1000.0,0.00018426,2]
[372903688,1752798632481,-1100.57547311,0.00018426,2]
[372903689,1752798632489,-207.4,0.00018426,2]
[372903690,1752798632499,-151.0,0.00018426,2]
[372903691,1752798632508,-151.0,0.00018426,2]
[372903692,1752798632517,-175.03511173,0.00018426,2]
[372903693,1752798632526,-182.1262644,0.00018426,2]
[372903694,1752798632535,-2016.0,0.00018437,2]
[372903695,1752798632546,-1023.0,0.00018437,2]
[372903696,1752798632554,-807.0,0.00018437,2]
[372903697,1752798632563,-1287.0,0.00018437,2]
[372903698,1752798632572,-1686.0,0.00018437,2]
[372903699,1752798632580,-428.994,0.00018437,2]
[372903700,1752798632589,-1166.0,0.00018437,2]
[372903701,1752798632598,-889.0,0.00018437,2]
[372903702,1752798632607,-952.0,0.00018437,2]
[372903703,1752798632616,-4123.0,0.00018437,2]
[372903704,1752798632625,-190.0,0.00018607,7]
[372903705,1752798632634,-158.55705637,0.00018699,2]
[372903706,1752798632643,-500.0,0.00018712,2]
[372903707,1752798632651,-866.0,0.0001878,2]
[372903708,1752798632660,-758.0,0.00018906,2]
[372903709,1752798632669,-2139.7,0.00018972,2]
[372903710,1752798632678,-600.0,0.00018974,2]
[372903711,1752798632688,-159.33,0.00019018,2]
[372903712,1752798632699,-510.0,0.00019059,2]
[372903713,1752798632708,-159.33,0.00019081,2]
[372903714,1752798632717,-674.36203079,0.00019083,2]
[372903715,1752798632727,-159.33,0.00019145,2]
[372903716,1752798632735,-173.11,0.00019178,2]
[372903717,1752798632745,-1878.31674886,0.00019208,2]
[372903718,1752798632754,-159.33,0.00019208,2]
[372903719,1752798632763,-150.0,0.00019253,2]
[372903720,1752798632772,-150.0,0.00019331,2]
[372903721,1752798632782,-600.0,0.00019522,2]
[372903722,1752798632793,-2507.27,0.00019584,2]
[372903723,1752798632803,-823.0,0.00019663,2]
[372903724,1752798632812,-152.0,0.00019668,3]
[372903725,1752798632821,-610.0,0.00019684,2]
[372903726,1752798632831,-195.68,0.00019766,2]
[372903727,1752798632840,-150.0,0.00019768,2]
[372903728,1752798632849,-200.0,0.00019769,2]
[372903729,1752798632859,-4398.76,0.00019779,2]
[372903730,1752798632868,-874.91,0.00019781,2]
[372903731,1752798632878,-215.0738,0.00019795,2]
[372903732,1752798632887,-666.0,0.00019802,2]
[372903733,1752798632896,-163.24,0.0001982,2]
[372903734,1752798632905,-442.49200188,0.00019821,2]
[372903735,1752798632914,-1000.0,0.0001983,2]
[372903736,1752798632923,-674.36203079,0.00019904,2]
[372903737,1752798632932,-3881.49,0.00019941,2]
[372903738,1752798632941,-3292.0,0.00019964,2]
[372903739,1752798632950,-183.0,0.0002,2]
[372903740,1752798632959,-1878.31674886,0.00020003,2]
[372903741,1752798632969,-848.0,0.0002005,2]
[372903742,1752798632978,-600.0,0.0002007,2]
[372903743,1752798632986,-1100.0,0.00020164,2]
[372903744,1752798632995,-1000.0,0.00020164,2]
[372903745,1752798633005,-500.0,0.00020164,2]
[372903746,1752798633014,-237.53,0.00020187,2]
[372903747,1752798633023,-21656.78,0.00020252,2]
[372903748,1752798633032,-766.4716981,0.00020271,2]
[372903749,1752798633043,-150.0,0.00020282,2]
[372903750,1752798633051,-766.4716981,0.00020419,2]
[372903751,1752798633060,-167.18,0.00020507,2]
[372903752,1752798633069,-195.68,0.00020508,2]
[372903753,1752798633079,-679.09682354,0.00020611,2]
[372903754,1752798633089,-600.0,0.00020618,2]
[372903755,1752798633100,-12394.58,0.00020654,2]
[372903756,1752798633112,-300.0,0.00020676,2]
[372903757,1752798633122,-186.65,0.00020676,2]
[372903758,1752798633131,-158.55705637,0.00020699,2]
[372903759,1752798633141,-674.36203079,0.00020725,2]
[372903760,1752798633151,-766.4716981,0.00020752,2]
[372903761,1752798633160,-493.89,0.00020789,2]
[372903762,1752798633170,-150.0,0.00020796,2]
[372903763,1752798633181,-1878.31674886,0.00020799,2]
[372903764,1752798633191,-4385.90322,0.0002088,2]
[372903765,1752798633200,-2530.57,0.00020903,2]
[372903766,1752798633210,-150.0,0.00020934,4]
[372903767,1752798633219,-150.0,0.00020934,4]
[372903768,1752798633228,-1500.0,0.00020993,2]
[372903769,1752798633238,-2000.0,0.00021,2]
[372903770,1752798633246,-152.0,0.00021064,4]
[372903771,1752798633255,-350.0,0.00021072,2]
[372903772,1752798633264,-1209.0,0.00021093,2]
[372903773,1752798633273,-1209.0,0.00021093,2]
[372903774,1752798633282,-1209.0,0.00021093,2]
[372903775,1752798633290,-1209.0,0.00021093,2]
[372903776,1752798633301,-1209.0,0.00021093,2]
[372903777,1752798633310,-1209.0,0.00021093,2]
[372903778,1752798633319,-1209.0,0.00021093,2]
[372903779,1752798633328,-1209.0,0.00021093,2]
[372903780,1752798633339,-1209.0,0.00021093,2]
[372903781,1752798633348,-1209.0,0.00021093,2]
[372903782,1752798633358,-438.34670351,0.00021114,2]
[372903783,1752798633367,-168.0,0.0002113,2]
[372903784,1752798633375,-223.0315306,0.00021164,2]
[372903785,1752798633385,-600.0,0.00021166,2]
[372903786,1752798633394,-168.0,0.00021212,2]
[372903787,1752798633403,-195.68,0.00021249,2]
[372903788,1752798633419,-1100.0,0.0002126,2]
[372903789,1752798633428,-1000.0,0.0002126,2]
[372903790,1752798633437,-150.0,0.0002131,2]
[372903791,1752798633446,-150.0,0.00021322,4]
[372903792,1752798633456,-831.0,0.0002133,2]
[372903793,1752798633465,-510.0,0.00021333,5]
[372903794,1752798633474,-476.69234516,0.00021428,2]
[372903795,1752798633483,-210.7686556,0.00021428,2]
[372903796,1752798633492,-838.90634898,0.00021428,2]
[372903797,1752798633501,-160.0,0.00021428,2]
[372903798,1752798633510,-500.0,0.00021436,2]
[372903799,1752798633518,-500.0,0.00021436,2]
[372903800,1752798633528,-2016.0,0.00021437,2]
[372903801,1752798633537,-438.054,0.00021437,2]
[372903802,1752798633547,-647.738,0.00021437,2]
[372903803,1752798633557,-168.826,0.00021437,2]
[372903804,1752798633567,-1166.0,0.00021437,2]
[372903805,1752798633576,-889.0,0.00021437,2]
[372903806,1752798633586,-952.0,0.00021437,2]
[372903807,1752798633596,-4123.0,0.00021437,2]
[372903808,1752798633606,-150.94,0.00021459,2]
[372903809,1752798633616,-168.0,0.0002146,2]
[372903810,1752798633626,-371.74378651,0.00021487,2]
[372903811,1752798633635,-2000.0,0.000215,2]
[372903812,1752798633645,-478.0,0.0002152,2]
[372903813,1752798633655,-674.36203079,0.00021545,2]
[372903814,1752798633664,-464.8,0.00021555,2]
[372903815,1752798633674,-1878.31674886,0.00021595,2]
[372903816,1752798633684,-500.0,0.000217,2]
[372903817,1752798633693,-150.0,0.0002171,4]
[372903818,1752798633703,-600.0,0.00021714,2]
[372903819,1752798633713,-1000.0,0.00021717,2]
[372903820,1752798633723,-49874.207,0.00021717,2]
[372903821,1752798633732,-1000.0,0.00021717,2]
[372903822,1752798633741,-534.9891,0.00021817,2]
[372903823,1752798633751,-5000.0,0.00021817,2]
[372903824,1752798633761,-2500.0,0.00021817,2]
[372903825,1752798633770,-180.301883,0.00021817,2]
[372903826,1752798633780,-150.0,0.00021825,2]
[372903827,1752798633790,-4385.90323,0.0002188,2]
[372903828,1752798633802,-2000.0,0.000219,2]
[372903829,1752798633811,-182032.60202532,0.00021917,2]
[372903830,1752798633826,-746.03469835,0.00021917,2]
[372903840,1752798637898,-3350.0,0.00018437,2]
[372903841,1752798637907,-3350.0,0.00021437,2]
[372903842,1752798637917,-6676.4309915,0.00021917,2]
[372903843,1752798637926,-12500.0,0.00021917,7]
[372903844,1752798637936,-151.234594,0.00021917,2]
[372903845,1752798637945,-460.0,0.00021917,2]
[372903846,1752798637955,-460.0,0.00021917,2]
[372903847,1752798637964,-460.0,0.00021917,2]
[372903848,1752798637974,-460.0,0.00021917,2]
[372903849,1752798637983,-431.29973512,0.00021917,2]
[372903861,1752798638191,-28.70026488,0.00021917,2]
[372903863,1752798638201,-460.0,0.00021917,2]
[372903865,1752798638211,-417.40983368,0.00021917,2]
[372903867,1752798638220,-287.08190144,0.00021917,2]
[372904012,1752798639666,-298.22183,0.00021469,2]
[372904022,1752798639774,-201.77817,0.00021469,2]
[372904024,1752798639784,-500.0,0.00021469,2]
[372904025,1752798639794,-166.68094074,0.00021469,2]
[372904027,1752798639806,-165217.555431,0.0002191,3]
[372904029,1752798639815,-172.91809856,0.00021917,2]
[372904031,1752798639825,-188.782411,0.00021917,2]
[372904033,1752798639835,-158.485098,0.00021917,2]
[372904034,1752798639844,-1049.720933,0.00021917,2]
[372904036,1752798639854,-460.0,0.00021917,2]
[372904038,1752798639863,-1315.083432,0.00021917,2]
[372904040,1752798639872,-1275.829275,0.00021917,2]
[372904042,1752798639882,-470.04887459,0.00021917,2]
[372904044,1752798639891,-460.0,0.00021917,2]
[372904046,1752798639901,-460.0,0.00021917,2]
[372904048,1752798639910,-460.0,0.00021917,2]
[372904049,1752798639920,-460.0,0.00021917,2]
[372904051,1752798639929,-460.0,0.00021917,2]
[372904053,1752798639939,-460.0,0.00021917,2]
[372904055,1752798639948,-421.96677145,0.00021917,2]
[372904057,1752798639958,-460.0,0.00021917,2]
[372904093,1752798640328,-460.0,0.00021917,2]
[372904095,1752798640339,-495.82290102,0.00021917,2]
[372904097,1752798640349,-460.0,0.00021917,2]
[372904099,1752798640358,-460.0,0.00021917,2]
[372904101,1752798640368,-460.0,0.00021917,2]
[372904103,1752798640377,-460.0,0.00021917,2]
[372904104,1752798640387,-460.0,0.00021917,2]
[372904106,1752798640396,-460.0,0.00021917,2]
[372904108,1752798640406,-460.0,0.00021917,2]
[372904110,1752798640415,-460.0,0.00021917,2]
[372904112,1752798640424,-460.0,0.00021917,2]
[372904114,1752798640433,-501.73057208,0.00021917,2]
[372904116,1752798640443,-258.19288563,0.00021917,2]
[372904118,1752798640452,-1000.0,0.00021917,2]
[372904119,1752798640462,-460.0,0.00021917,2]
[372904121,1752798640472,-460.0,0.00021917,2]
[372904123,1752798640481,-460.0,0.00021917,2]
[372904125,1752798640491,-460.0,0.00021917,2]
[372904127,1752798640500,-460.0,0.00021917,2]
[372904129,1752798640510,-460.0,0.00021917,2]
[372904131,1752798640520,-460.0,0.00021917,2]
[372904133,1752798640530,-460.0,0.00021917,2]
[372904135,1752798640539,-460.0,0.00021917,2]
[372904136,1752798640548,-460.0,0.00021917,2]
[372904138,1752798640558,-460.0,0.00021917,2]
[372904140,1752798640567,-460.0,0.00021917,2]
[372904142,1752798640577,-460.0,0.00021917,2]
[372904144,1752798640586,-460.0,0.00021917,2]
[372904146,1752798640595,-460.0,0.00021917,2]
[372904148,1752798640604,-460.0,0.00021917,2]
[372904150,1752798640613,-460.0,0.00021917,2]
[372904151,1752798640622,-460.0,0.00021917,2]
[372904153,1752798640632,-460.0,0.00021917,2]
[372904155,1752798640642,-460.0,0.00021917,2]
[372904157,1752798640651,-460.0,0.00021917,2]
[372904159,1752798640661,-460.0,0.00021917,2]
[372904161,1752798640670,-460.0,0.00021917,2]
[372904163,1752798640679,-460.0,0.00021917,2]
[372904165,1752798640688,-460.0,0.00021917,2]
[372904166,1752798640697,-460.0,0.00021917,2]
[372904168,1752798640707,-460.0,0.00021917,2]
[372904170,1752798640716,-460.0,0.00021917,2]
[372904172,1752798640724,-6.69041994,0.00021917,2]
[372904353,1752798642570,-500.0,0.00021469,2]
[372904355,1752798642579,-469.06441286,0.00021469,2]
[372904357,1752798642589,-5000.0,0.00021817,2]
[372904359,1752798642598,-456.66600696,0.00021917,2]
[372904361,1752798642607,-460.0,0.00021917,2]
[372904363,1752798642617,-460.0,0.00021917,2]
[372904365,1752798642626,-608.90601653,0.00021917,2]
[372904368,1752798642638,-78.54398347,0.00021917,2]
[372904370,1752798642648,-560.07,0.00021917,2]
[372904372,1752798642657,-460.0,0.00021917,2]
[372904374,1752798642668,-460.0,0.00021917,2]
[372904376,1752798642677,-468.00846234,0.00021917,2]
[372904378,1752798642686,-460.0,0.00021917,2]
[372904380,1752798642695,-460.0,0.00021917,2]
[372904382,1752798642705,-412.08109038,0.00021917,2]
[372904405,1752798642904,-47.91890962,0.00021917,2]
[372904407,1752798642913,-460.0,0.00021917,2]
[372904410,1752798642923,-460.0,0.00021917,2]
[372904412,1752798642932,-460.0,0.00021917,2]
[372904413,1752798642942,-460.0,0.00021917,2]
[372904416,1752798642951,-460.0,0.00021917,2]
[372904418,1752798642961,-460.0,0.00021917,2]
[372904420,1752798642970,-460.0,0.00021917,2]
[372904421,1752798642979,-460.0,0.00021917,2]
[372904423,1752798642989,-460.0,0.00021917,2]
[372904425,1752798642999,-460.0,0.00021917,2]
[372904427,1752798643008,-381.44215053,0.00021917,2]
[372904705,1752798645603,-598.05,0.0001893,2]
[372904724,1752798645772,-261.74503199,0.0001893,2]
[372904726,1752798645783,-2.20496801,0.0001893,2]
[372904728,1752798645792,-78.55784947,0.00021917,2]
[372904730,1752798645803,-456.6270707,0.00021917,2]
[372904738,1752798645870,-3.3729293,0.00021917,2]
[372904740,1752798645879,-62.99480263,0.00021917,2]
[372904742,1752798645891,-397.00519737,0.00021917,2]
[372904744,1752798645900,-460.0,0.00021917,2]
[372904746,1752798645910,-31.24480253,0.00021917,2]
[372904750,1752798645933,-428.75519747,0.00021917,2]
[372904752,1752798645943,-461.76,0.00021917,2]
[372904754,1752798645952,-460.0,0.00021917,2]
[372904756,1752798645961,-460.0,0.00021917,2]
[372904758,1752798645971,-460.0,0.00021917,2]
[372904760,1752798645980,-460.0,0.00021917,2]
[372904762,1752798645989,-460.0,0.00021917,2]
[372904764,1752798645999,-460.0,0.00021917,2]
[372904765,1752798646008,-577.05797153,0.00021917,2]
[372904766,1752798646018,-460.0,0.00021917,2]
[372904767,1752798646027,-460.0,0.00021917,2]
[372904769,1752798646036,-460.0,0.00021917,2]
[372904771,1752798646046,-300.0,0.00021917,2]
[372904773,1752798646056,-460.0,0.00021917,2]
[372904775,1752798646065,-460.0,0.00021917,2]
[372904777,1752798646075,-460.0,0.00021917,2]
[372904779,1752798646085,-460.0,0.00021917,2]
[372904780,1752798646095,-460.0,0.00021917,2]
[372904781,1752798646107,-460.0,0.00021917,2]
[372904782,1752798646118,-460.0,0.00021917,2]
[372904783,1752798646127,-460.0,0.00021917,2]
[372904784,1752798646136,-460.0,0.00021917,2]
[372904785,1752798646147,-460.0,0.00021917,2]
[372904786,1752798646155,-460.0,0.00021917,2]
[372904787,1752798646163,-460.0,0.00021917,2]
[372904788,1752798646172,-460.0,0.00021917,2]
[372904790,1752798646180,-460.0,0.00021917,2]
[372904791,1752798646190,-460.0,0.00021917,2]
[372904792,1752798646200,-460.0,0.00021917,2]